[Event "Early-Titled-Tuesday-Blitz-October-17-2023"]
[Site "Chess.com"]
[Date "2023.10.17"]
[Round "5"]
[White "Eagle_2019"]
[Black "TregubovP"]
[Result "0-1"]
[WhiteElo "2712"]
[BlackElo "2612"]
[TimeControl "180+1"]
[EndTime "8:57:25 PDT"]
[Termination "TregubovP won on time"]

1. d4 {[%clk 0:03:00.9]} 1... Nf6 {[%clk 0:02:59.3]} 2. Nf3 {[%clk 0:03:00.7]}
2... c5 {[%clk 0:02:57.6]} 3. d5 {[%clk 0:02:58.8]} 3... b5 {[%clk 0:02:58]} 4.
Bg5 {[%clk 0:02:50]} 4... Qb6 {[%clk 0:02:58]} 5. Bxf6 {[%clk 0:02:46.4]} 5...
Qxf6 {[%clk 0:02:57.7]} 6. c3 {[%clk 0:02:46.4]} 6... g6 {[%clk 0:02:57.9]} 7.
e4 {[%clk 0:02:46.2]} 7... Qb6 {[%clk 0:02:58.4]} 8. Nbd2 {[%clk 0:02:45]} 8...
Bg7 {[%clk 0:02:58.3]} 9. a4 {[%clk 0:02:44.9]} 9... b4 {[%clk 0:02:58.3]} 10.
Nc4 {[%clk 0:02:41.7]} 10... Qb7 {[%clk 0:02:58.8]} 11. Qc2 {[%clk 0:02:17.8]}
11... O-O {[%clk 0:02:56.7]} 12. Be2 {[%clk 0:02:15.5]} 12... d6 {[%clk
0:02:55]} 13. O-O {[%clk 0:02:15.2]} 13... bxc3 {[%clk 0:02:54.9]} 14. bxc3
{[%clk 0:02:14.9]} 14... Qc7 {[%clk 0:02:55.2]} 15. Rfe1 {[%clk 0:02:05.3]}
15... Nd7 {[%clk 0:02:54.6]} 16. Bf1 {[%clk 0:02:01.6]} 16... Ba6 {[%clk
0:02:54.3]} 17. Nfd2 {[%clk 0:01:58]} 17... Rab8 {[%clk 0:02:53.7]} 18. Na3
{[%clk 0:01:56.6]} 18... Bxf1 {[%clk 0:02:50.2]} 19. Kxf1 {[%clk 0:01:55.6]}
19... Qa5 {[%clk 0:02:48]} 20. Nb5 {[%clk 0:01:51]} 20... Ne5 {[%clk 0:02:11.4]}
21. f4 {[%clk 0:01:23.3]} 21... a6 {[%clk 0:02:11.3]} 22. Na3 {[%clk 0:00:27.9]}
22... Ng4 {[%clk 0:02:04.1]} 23. h3 {[%clk 0:00:26.7]} 23... Qxc3 {[%clk
0:01:21.9]} 24. hxg4 {[%clk 0:00:26.2]} 24... Qg3 {[%clk 0:01:21]} 25. e5 {[%clk
0:00:23.8]} 25... Qxf4+ {[%clk 0:01:18.1]} 26. Nf3 {[%clk 0:00:22]} 26... Qxg4
{[%clk 0:01:07.7]} 27. Nc4 {[%clk 0:00:19.6]} 27... Rb4 {[%clk 0:01:05.9]} 28.
Rac1 {[%clk 0:00:18.1]} 28... Bh6 {[%clk 0:01:04.3]} 29. exd6 {[%clk 0:00:16.8]}
29... exd6 {[%clk 0:01:03.9]} 30. Ne3 {[%clk 0:00:07.7]} 30... Qh5 {[%clk
0:00:54.3]} 31. Rb1 {[%clk 0:00:05.9]} 31... Rf4 {[%clk 0:00:29.4]} 32. Qf2
{[%clk 0:00:03.6]} 32... Rxa4 {[%clk 0:00:27.4]} 33. Ke2 {[%clk 0:00:03.8]}
33... Ra2+ {[%clk 0:00:26.1]} 0-1

[Event "Early-Titled-Tuesday-Blitz-October-17-2023"]
[Site "Chess.com"]
[Date "2023.10.17"]
[Round "5"]
[White "masterofpuppets2"]
[Black "BardArtem"]
[Result "0-1"]
[WhiteElo "2510"]
[BlackElo "2762"]
[TimeControl "180+1"]
[EndTime "8:57:25 PDT"]
[Termination "BardArtem won by checkmate"]

1. d4 {[%clk 0:03:00.9]} 1... h6 {[%clk 0:02:55.2]} 2. c4 {[%clk 0:02:59.4]}
2... d6 {[%clk 0:02:54.5]} 3. Nc3 {[%clk 0:02:58]} 3... Nd7 {[%clk 0:02:53.4]}
4. h4 {[%clk 0:02:52.5]} 4... Ngf6 {[%clk 0:02:46.5]} 5. e4 {[%clk 0:02:44.4]}
5... e5 {[%clk 0:02:46.3]} 6. d5 {[%clk 0:02:44.7]} 6... a5 {[%clk 0:02:42.9]}
7. Bd3 {[%clk 0:02:38.4]} 7... Nc5 {[%clk 0:02:41.5]} 8. Bc2 {[%clk 0:02:38.8]}
8... Be7 {[%clk 0:02:40.9]} 9. Nge2 {[%clk 0:02:35.4]} 9... c6 {[%clk
0:02:16.5]} 10. f3 {[%clk 0:02:21.5]} 10... Bd7 {[%clk 0:02:06.5]} 11. Be3
{[%clk 0:02:20.4]} 11... Na6 {[%clk 0:01:56.7]} 12. Qd2 {[%clk 0:02:13.8]} 12...
Rc8 {[%clk 0:01:53.4]} 13. b3 {[%clk 0:02:06.8]} 13... cxd5 {[%clk 0:01:48.2]}
14. exd5 {[%clk 0:02:06.1]} 14... Nh5 {[%clk 0:01:35.8]} 15. g3 {[%clk
0:01:48.1]} 15... f5 {[%clk 0:01:32.5]} 16. O-O-O {[%clk 0:01:30.6]} 16... Nb4
{[%clk 0:01:23.5]} 17. Bb1 {[%clk 0:01:28.3]} 17... b5 {[%clk 0:01:21.7]} 18. g4
{[%clk 0:01:28.1]} 18... Nf6 {[%clk 0:01:12.8]} 19. cxb5 {[%clk 0:01:12.6]}
19... Nfxd5 {[%clk 0:00:58.8]} 20. Kb2 {[%clk 0:01:05.4]} 20... Nxc3 {[%clk
0:00:34.6]} 21. Nxc3 {[%clk 0:01:05.2]} 21... O-O {[%clk 0:00:35.2]} 22. a3
{[%clk 0:00:55.1]} 22... fxg4 {[%clk 0:00:32.1]} 23. axb4 {[%clk 0:00:34.8]}
23... Rxf3 {[%clk 0:00:31.2]} 24. Rhf1 {[%clk 0:00:25.4]} 24... axb4 {[%clk
0:00:26.2]} 25. Nd5 {[%clk 0:00:20.3]} 25... Qa5 {[%clk 0:00:18.6]} 26. Qxb4
{[%clk 0:00:13.7]} 26... Qxb4 {[%clk 0:00:16.6]} 27. Nxb4 {[%clk 0:00:14.6]}
27... Rxe3 {[%clk 0:00:16.9]} 28. Nd5 {[%clk 0:00:13.8]} 28... Re2+ {[%clk
0:00:17]} 29. Ka3 {[%clk 0:00:12.4]} 29... Bd8 {[%clk 0:00:14]} 30. Bd3 {[%clk
0:00:10.8]} 30... Ra8+ {[%clk 0:00:13.9]} 31. Kb4 {[%clk 0:00:09.9]} 31... Ba5+
{[%clk 0:00:14.4]} 32. Kc4 {[%clk 0:00:10.5]} 32... Rc8+ {[%clk 0:00:14.6]} 33.
Nc7 {[%clk 0:00:09.4]} 33... Be6# {[%clk 0:00:14.9]} 0-1

[Event "Early-Titled-Tuesday-Blitz-October-17-2023"]
[Site "Chess.com"]
[Date "2023.10.17"]
[Round "5"]
[White "BasilSmash"]
[Black "MikeSailer"]
[Result "1-0"]
[WhiteElo "2364"]
[BlackElo "2089"]
[TimeControl "180+1"]
[EndTime "8:57:26 PDT"]
[Termination "BasilSmash won on time"]

1. e4 {[%clk 0:02:59.1]} 1... g6 {[%clk 0:02:59.1]} 2. d4 {[%clk 0:02:58.7]}
2... Bg7 {[%clk 0:02:59.8]} 3. Nf3 {[%clk 0:02:57.9]} 3... c5 {[%clk 0:03:00.3]}
4. dxc5 {[%clk 0:02:56.6]} 4... Nc6 {[%clk 0:02:45.8]} 5. c3 {[%clk 0:02:55.2]}
5... Nf6 {[%clk 0:02:27.8]} 6. Bd3 {[%clk 0:02:52.2]} 6... O-O {[%clk
0:02:27.3]} 7. O-O {[%clk 0:02:51.7]} 7... b6 {[%clk 0:02:22]} 8. cxb6 {[%clk
0:02:50.1]} 8... axb6 {[%clk 0:02:15.7]} 9. Re1 {[%clk 0:02:45.9]} 9... d6
{[%clk 0:02:13.8]} 10. Nbd2 {[%clk 0:02:44.7]} 10... Bb7 {[%clk 0:02:13.5]} 11.
Qe2 {[%clk 0:02:42.5]} 11... Ra5 {[%clk 0:02:02.7]} 12. Nb3 {[%clk 0:02:38.4]}
12... Rh5 {[%clk 0:02:01.1]} 13. h3 {[%clk 0:02:34.9]} 13... Nd7 {[%clk
0:01:53.2]} 14. Nbd4 {[%clk 0:02:31.4]} 14... Nce5 {[%clk 0:01:51]} 15. Bc2
{[%clk 0:02:30.2]} 15... Qa8 {[%clk 0:01:49.1]} 16. Bf4 {[%clk 0:02:22.5]} 16...
Nxf3+ {[%clk 0:01:37.6]} 17. Nxf3 {[%clk 0:02:21.1]} 17... Nc5 {[%clk
0:01:19.5]} 18. a4 {[%clk 0:02:06.4]} 18... Ba6 {[%clk 0:01:13.9]} 19. Qd2
{[%clk 0:02:01.5]} 19... Ne6 {[%clk 0:00:57.8]} 20. Be3 {[%clk 0:01:46]} 20...
Qb8 {[%clk 0:00:52]} 21. Nd4 {[%clk 0:01:42.5]} 21... Nc5 {[%clk 0:00:44.4]} 22.
b4 {[%clk 0:01:38.7]} 22... Nd7 {[%clk 0:00:44.3]} 23. Bb3 {[%clk 0:01:31.5]}
23... Ne5 {[%clk 0:00:41.5]} 24. a5 {[%clk 0:01:15.5]} 24... Bc4 {[%clk
0:00:26.9]} 25. a6 {[%clk 0:01:06.5]} 25... Bxb3 {[%clk 0:00:18.7]} 26. Nxb3
{[%clk 0:01:07.4]} 26... Nc4 {[%clk 0:00:19.3]} 27. Qd3 {[%clk 0:01:02.7]} 27...
b5 {[%clk 0:00:12.9]} 28. a7 {[%clk 0:01:02.1]} 28... Qa8 {[%clk 0:00:12.8]} 29.
Bd4 {[%clk 0:01:02]} 29... e5 {[%clk 0:00:08]} 30. Be3 {[%clk 0:01:02.1]} 30...
f5 {[%clk 0:00:07.5]} 31. Qd5+ {[%clk 0:01:00.7]} 31... Kh8 {[%clk 0:00:05.7]}
32. Qxa8 {[%clk 0:00:58.7]} 32... Rxa8 {[%clk 0:00:06.1]} 33. exf5 {[%clk
0:00:53.7]} 33... gxf5 {[%clk 0:00:05.8]} 34. f4 {[%clk 0:00:53.6]} 34... e4
{[%clk 0:00:05]} 35. Bd4 {[%clk 0:00:52.8]} 35... Bxd4+ {[%clk 0:00:04.9]} 36.
Nxd4 {[%clk 0:00:53.7]} 36... Nb6 {[%clk 0:00:02]} 37. Nxb5 {[%clk 0:00:52.7]}
37... Nc8 {[%clk 0:00:01.6]} 38. Ra6 {[%clk 0:00:44.9]} 38... Rh6 {[%clk
0:00:02.4]} 39. Rea1 {[%clk 0:00:44.4]} 39... Rg6 {[%clk 0:00:02.5]} 40. Nc7
{[%clk 0:00:44.3]} 1-0

[Event "Early-Titled-Tuesday-Blitz-October-17-2023"]
[Site "Chess.com"]
[Date "2023.10.17"]
[Round "5"]
[White "Egor_Koshulyan"]
[Black "Alexander_Donchenko"]
[Result "0-1"]
[WhiteElo "2731"]
[BlackElo "2877"]
[TimeControl "180+1"]
[EndTime "8:57:27 PDT"]
[Termination "Alexander_Donchenko won by resignation"]

1. e4 {[%clk 0:03:00.9]} 1... c6 {[%clk 0:02:59.9]} 2. d4 {[%clk 0:02:57.8]}
2... d5 {[%clk 0:03:00.8]} 3. e5 {[%clk 0:02:58.3]} 3... Bf5 {[%clk 0:03:00.4]}
4. Nf3 {[%clk 0:02:58.4]} 4... e6 {[%clk 0:03:00.3]} 5. Be2 {[%clk 0:02:58.9]}
5... Ne7 {[%clk 0:02:59.2]} 6. O-O {[%clk 0:02:59.5]} 6... h6 {[%clk 0:02:58.9]}
7. a4 {[%clk 0:03:00]} 7... Nd7 {[%clk 0:02:58.9]} 8. a5 {[%clk 0:03:00.4]} 8...
a6 {[%clk 0:02:58.9]} 9. b4 {[%clk 0:02:56.9]} 9... g5 {[%clk 0:02:57.7]} 10. c3
{[%clk 0:02:56]} 10... Bg7 {[%clk 0:02:55.2]} 11. Nbd2 {[%clk 0:02:54.9]} 11...
O-O {[%clk 0:02:53.1]} 12. Nb3 {[%clk 0:02:52.5]} 12... Qc7 {[%clk 0:02:49]} 13.
Ne1 {[%clk 0:02:47.8]} 13... f6 {[%clk 0:02:47.4]} 14. exf6 {[%clk 0:02:47.9]}
14... Nxf6 {[%clk 0:02:42.8]} 15. f4 {[%clk 0:02:36.5]} 15... Ne4 {[%clk
0:02:41.4]} 16. Bd2 {[%clk 0:02:28]} 16... gxf4 {[%clk 0:02:29.6]} 17. Bxf4
{[%clk 0:02:09.7]} 17... e5 {[%clk 0:02:29.7]} 18. dxe5 {[%clk 0:02:07.1]} 18...
Bxe5 {[%clk 0:02:29.3]} 19. Bxe5 {[%clk 0:01:01.3]} 19... Qxe5 {[%clk
0:02:30.2]} 20. Nd3 {[%clk 0:01:01.7]} 20... Qxc3 {[%clk 0:02:26.3]} 21. Rc1
{[%clk 0:01:01.7]} 21... Qg7 {[%clk 0:02:24.2]} 22. Ndc5 {[%clk 0:00:56.1]}
22... Kh8 {[%clk 0:02:10.6]} 23. Bf3 {[%clk 0:00:54.7]} 23... Rae8 {[%clk
0:01:59.4]} 24. Nxb7 {[%clk 0:00:42.4]} 24... Ng6 {[%clk 0:01:58.5]} 25. N7c5
{[%clk 0:00:40.3]} 25... Nh4 {[%clk 0:01:55.8]} 26. Qd4 {[%clk 0:00:28.2]} 26...
Rf6 {[%clk 0:01:50]} 27. Rce1 {[%clk 0:00:09.7]} 27... Rg8 {[%clk 0:01:45.1]}
28. Re2 {[%clk 0:00:09]} 28... Kh7 {[%clk 0:00:45.3]} 29. Nxe4 {[%clk
0:00:06.3]} 29... Nxf3+ {[%clk 0:00:34.9]} 30. Rxf3 {[%clk 0:00:07.2]} 30...
dxe4 {[%clk 0:00:35.3]} 31. Rg3 {[%clk 0:00:07.7]} 31... Bg6 {[%clk 0:00:29.1]}
32. Nc5 {[%clk 0:00:06.2]} 32... Rf1+ {[%clk 0:00:28.8]} 33. Kxf1 {[%clk
0:00:03.1]} 33... Qxd4 {[%clk 0:00:29.7]} 34. Ne6 {[%clk 0:00:03.5]} 34... Qc4
{[%clk 0:00:26.3]} 35. Nf4 {[%clk 0:00:03.3]} 35... Rf8 {[%clk 0:00:25.7]} 36.
Rg4 {[%clk 0:00:03.4]} 36... Bh5 {[%clk 0:00:25.6]} 0-1

[Event "Early-Titled-Tuesday-Blitz-October-17-2023"]
[Site "Chess.com"]
[Date "2023.10.17"]
[Round "5"]
[White "Let_it_be_1"]
[Black "viktorgen2021"]
[Result "1-0"]
[WhiteElo "2635"]
[BlackElo "2410"]
[TimeControl "180+1"]
[EndTime "8:57:28 PDT"]
[Termination "Let_it_be_1 won by resignation"]

1. e4 {[%clk 0:03:00.9]} 1... g6 {[%clk 0:02:54.1]} 2. d4 {[%clk 0:03:00.4]}
2... Bg7 {[%clk 0:02:53.4]} 3. Nc3 {[%clk 0:03:00.2]} 3... d6 {[%clk 0:02:53.9]}
4. f4 {[%clk 0:03:00.3]} 4... Nf6 {[%clk 0:02:54.3]} 5. Nf3 {[%clk 0:03:00.3]}
5... O-O {[%clk 0:02:54.9]} 6. Be3 {[%clk 0:03:00.3]} 6... Na6 {[%clk
0:02:54.8]} 7. e5 {[%clk 0:02:51.8]} 7... Ne8 {[%clk 0:02:45.7]} 8. Bc4 {[%clk
0:02:40]} 8... c5 {[%clk 0:02:44.2]} 9. Qe2 {[%clk 0:02:32]} 9... cxd4 {[%clk
0:02:42.2]} 10. Bxd4 {[%clk 0:02:32.1]} 10... Bg4 {[%clk 0:02:37.5]} 11. O-O-O
{[%clk 0:02:28.4]} 11... Qa5 {[%clk 0:02:28.7]} 12. e6 {[%clk 0:02:04]} 12... f5
{[%clk 0:02:18.2]} 13. Nd5 {[%clk 0:01:55]} 13... Qd8 {[%clk 0:02:11.4]} 14. h3
{[%clk 0:01:41.4]} 14... Bxf3 {[%clk 0:02:09.9]} 15. Qxf3 {[%clk 0:01:41.1]}
15... Rc8 {[%clk 0:02:07.4]} 16. Bxa6 {[%clk 0:01:31.4]} 16... bxa6 {[%clk
0:02:08.3]} 17. Qa3 {[%clk 0:01:07.1]} 17... Bxd4 {[%clk 0:02:04.9]} 18. Rxd4
{[%clk 0:01:06.8]} 18... Nc7 {[%clk 0:02:05.8]} 19. Nxc7 {[%clk 0:00:54.6]}
19... Qxc7 {[%clk 0:02:03.3]} 20. c3 {[%clk 0:00:54.7]} 20... Qb7 {[%clk
0:02:00.1]} 21. Rd2 {[%clk 0:00:46.7]} 21... Rc4 {[%clk 0:01:56.5]} 22. Rf1
{[%clk 0:00:43.4]} 22... Rfc8 {[%clk 0:01:52.4]} 23. Qb3 {[%clk 0:00:42.1]}
23... Qe4 {[%clk 0:01:40.6]} 24. Qc2 {[%clk 0:00:27.4]} 24... Qxe6 {[%clk
0:01:32.9]} 25. Re2 {[%clk 0:00:27.7]} 25... Qf6 {[%clk 0:01:31.1]} 26. Rfe1
{[%clk 0:00:27.1]} 26... R8c7 {[%clk 0:01:17.8]} 27. Re6 {[%clk 0:00:26.1]}
27... Qh4 {[%clk 0:01:13.4]} 28. Qb3 {[%clk 0:00:20.5]} 28... Qxf4+ {[%clk
0:01:11.5]} 29. Kb1 {[%clk 0:00:20.8]} 29... Kf7 {[%clk 0:00:58.3]} 30. g4
{[%clk 0:00:20.6]} 30... a5 {[%clk 0:00:50.8]} 31. gxf5 {[%clk 0:00:20.1]} 31...
gxf5 {[%clk 0:00:45.5]} 32. Qb8 {[%clk 0:00:18.9]} 32... Re4 {[%clk 0:00:28.5]}
33. R6xe4 {[%clk 0:00:18.4]} 33... fxe4 {[%clk 0:00:28.3]} 34. Qxc7 {[%clk
0:00:18.6]} 34... e3 {[%clk 0:00:28]} 35. Qc6 {[%clk 0:00:15]} 35... Qf5+ {[%clk
0:00:23.6]} 36. Ka1 {[%clk 0:00:14.4]} 36... Qf2 {[%clk 0:00:24.2]} 37. Qh1
{[%clk 0:00:14]} 37... Ke8 {[%clk 0:00:23.4]} 38. Qf1 {[%clk 0:00:13.7]} 38...
Qg3 {[%clk 0:00:23.5]} 39. Qe2 {[%clk 0:00:12.1]} 1-0

[Event "Early-Titled-Tuesday-Blitz-October-17-2023"]
[Site "Chess.com"]
[Date "2023.10.17"]
[Round "5"]
[White "DenisQ"]
[Black "AradNazari"]
[Result "0-1"]
[WhiteElo "2643"]
[BlackElo "2858"]
[TimeControl "180+1"]
[EndTime "8:57:30 PDT"]
[Termination "AradNazari won by resignation"]

1. Nf3 {[%clk 0:02:55.1]} 1... c5 {[%clk 0:02:59.5]} 2. c4 {[%clk 0:02:54.3]}
2... Nc6 {[%clk 0:02:59.5]} 3. Nc3 {[%clk 0:02:54]} 3... e5 {[%clk 0:02:55.2]}
4. g3 {[%clk 0:02:53.4]} 4... g6 {[%clk 0:02:55.2]} 5. Bg2 {[%clk 0:02:53.3]}
5... Bg7 {[%clk 0:02:55.9]} 6. O-O {[%clk 0:02:53.9]} 6... Nge7 {[%clk
0:02:56.6]} 7. Ne1 {[%clk 0:02:54.4]} 7... O-O {[%clk 0:02:57.4]} 8. Nc2 {[%clk
0:02:54.6]} 8... Rb8 {[%clk 0:02:57.3]} 9. a3 {[%clk 0:02:51.1]} 9... a5 {[%clk
0:02:57.7]} 10. d3 {[%clk 0:02:50]} 10... d6 {[%clk 0:02:56.8]} 11. Rb1 {[%clk
0:02:48.4]} 11... Be6 {[%clk 0:02:57.3]} 12. b4 {[%clk 0:02:40.8]} 12... axb4
{[%clk 0:02:56.9]} 13. axb4 {[%clk 0:02:41.7]} 13... b6 {[%clk 0:02:53.6]} 14.
Bg5 {[%clk 0:02:34.6]} 14... Qd7 {[%clk 0:02:50.7]} 15. Bxe7 {[%clk 0:02:27.5]}
15... Nxe7 {[%clk 0:02:48.6]} 16. Ne3 {[%clk 0:02:27]} 16... Bh3 {[%clk
0:02:41.7]} 17. Bxh3 {[%clk 0:02:22.8]} 17... Qxh3 {[%clk 0:02:42.6]} 18. Ned5
{[%clk 0:02:21.9]} 18... Nf5 {[%clk 0:02:40.5]} 19. e3 {[%clk 0:02:12.4]} 19...
h5 {[%clk 0:02:38.6]} 20. Ne4 {[%clk 0:02:07.4]} 20... Rfd8 {[%clk 0:02:12.6]}
21. Qe2 {[%clk 0:01:54.9]} 21... Nh6 {[%clk 0:02:08.7]} 22. Rb3 {[%clk
0:01:38.3]} 22... b5 {[%clk 0:01:22.4]} 23. Ne7+ {[%clk 0:00:57.5]} 23... Kf8
{[%clk 0:01:09.8]} 24. Nc6 {[%clk 0:00:57.2]} 24... bxc4 {[%clk 0:01:09.7]} 25.
dxc4 {[%clk 0:00:56.7]} 25... cxb4 {[%clk 0:00:41.6]} 26. Nxd8 {[%clk
0:00:53.4]} 26... Rxd8 {[%clk 0:00:41.7]} 27. Rxb4 {[%clk 0:00:53]} 27... Qf5
{[%clk 0:00:34.1]} 28. f3 {[%clk 0:00:38.3]} 28... Kg8 {[%clk 0:00:33]} 29. Rd1
{[%clk 0:00:37.4]} 29... Bf8 {[%clk 0:00:32.8]} 30. Rb6 {[%clk 0:00:33.6]} 30...
h4 {[%clk 0:00:30.6]} 31. Nxd6 {[%clk 0:00:30.9]} 31... Bxd6 {[%clk 0:00:26.3]}
32. Rbxd6 {[%clk 0:00:30.2]} 32... Rxd6 {[%clk 0:00:27]} 33. Rxd6 {[%clk
0:00:30.1]} 33... hxg3 {[%clk 0:00:27.9]} 34. hxg3 {[%clk 0:00:29.7]} 34... Qg5
{[%clk 0:00:28.8]} 35. g4 {[%clk 0:00:20.6]} 35... Nf5 {[%clk 0:00:28.8]} 36.
Rd3 {[%clk 0:00:20.7]} 36... e4 {[%clk 0:00:29.5]} 37. fxe4 {[%clk 0:00:20.4]}
37... Nh6 {[%clk 0:00:28.7]} 38. Rd5 {[%clk 0:00:19.4]} 38... Qh4 {[%clk
0:00:26.5]} 39. Qf3 {[%clk 0:00:18.6]} 39... Nxg4 {[%clk 0:00:23.8]} 40. Rd2
{[%clk 0:00:18.4]} 40... Qe1+ {[%clk 0:00:23.1]} 0-1

[Event "Early-Titled-Tuesday-Blitz-October-17-2023"]
[Site "Chess.com"]
[Date "2023.10.17"]
[Round "5"]
[White "SchmakAttack"]
[Black "LeoLV10"]
[Result "1-0"]
[WhiteElo "2734"]
[BlackElo "2586"]
[TimeControl "180+1"]
[EndTime "8:57:31 PDT"]
[Termination "SchmakAttack won by resignation"]

1. d4 {[%clk 0:03:00.9]} 1... Nf6 {[%clk 0:02:56.3]} 2. Bg5 {[%clk 0:03:00.2]}
2... d5 {[%clk 0:02:54.2]} 3. Nd2 {[%clk 0:02:59.7]} 3... c5 {[%clk 0:02:47.4]}
4. e3 {[%clk 0:02:51.3]} 4... Nc6 {[%clk 0:02:45.6]} 5. Ngf3 {[%clk 0:02:48]}
5... e6 {[%clk 0:02:42.9]} 6. c3 {[%clk 0:02:44]} 6... Be7 {[%clk 0:02:34.1]} 7.
Bd3 {[%clk 0:02:43.2]} 7... h6 {[%clk 0:02:32.2]} 8. Bh4 {[%clk 0:02:42.9]} 8...
cxd4 {[%clk 0:02:30]} 9. exd4 {[%clk 0:02:42.9]} 9... O-O {[%clk 0:02:22.4]} 10.
O-O {[%clk 0:02:39.5]} 10... Nd7 {[%clk 0:02:22.5]} 11. Bg3 {[%clk 0:02:38.1]}
11... Re8 {[%clk 0:02:20.3]} 12. Re1 {[%clk 0:02:33]} 12... Bf6 {[%clk
0:02:19.8]} 13. a4 {[%clk 0:02:10.5]} 13... e5 {[%clk 0:02:13.8]} 14. dxe5
{[%clk 0:02:10.5]} 14... Ndxe5 {[%clk 0:02:14]} 15. Nxe5 {[%clk 0:02:08.1]}
15... Nxe5 {[%clk 0:02:14.5]} 16. Bb5 {[%clk 0:02:07.7]} 16... Bd7 {[%clk
0:02:13.6]} 17. Qb3 {[%clk 0:01:56.2]} 17... Bc6 {[%clk 0:02:04.8]} 18. Rad1
{[%clk 0:01:52.4]} 18... a6 {[%clk 0:02:02.4]} 19. Bxc6 {[%clk 0:01:45.8]} 19...
bxc6 {[%clk 0:02:03.3]} 20. Qc2 {[%clk 0:01:44]} 20... Ng6 {[%clk 0:01:57.5]}
21. Nb3 {[%clk 0:01:42.7]} 21... Qb6 {[%clk 0:01:50.9]} 22. h3 {[%clk
0:01:38.1]} 22... h5 {[%clk 0:01:49.4]} 23. a5 {[%clk 0:01:29.5]} 23... Qa7
{[%clk 0:01:43.7]} 24. Bd6 {[%clk 0:01:19.3]} 24... Qd7 {[%clk 0:01:39.6]} 25.
Bc5 {[%clk 0:01:17.8]} 25... Nf4 {[%clk 0:01:32.8]} 26. Be3 {[%clk 0:01:06.5]}
26... Nxh3+ {[%clk 0:01:02.1]} 27. gxh3 {[%clk 0:01:06.4]} 27... Qxh3 {[%clk
0:01:03]} 28. Nd4 {[%clk 0:00:48.8]} 28... Re4 {[%clk 0:00:35.8]} 29. f3 {[%clk
0:00:41.3]} 29... Rh4 {[%clk 0:00:35.4]} 30. Qg2 {[%clk 0:00:40.3]} 30... Qd7
{[%clk 0:00:35]} 31. Bf2 {[%clk 0:00:37.6]} 31... Rf4 {[%clk 0:00:34.5]} 32. Bg3
{[%clk 0:00:37.6]} 32... Bxd4+ {[%clk 0:00:29.1]} 33. cxd4 {[%clk 0:00:37.1]}
33... Rf6 {[%clk 0:00:29.9]} 34. Kh2 {[%clk 0:00:32.4]} 34... Rg6 {[%clk
0:00:29.7]} 35. Qh3 {[%clk 0:00:32.5]} 35... Qb7 {[%clk 0:00:26.6]} 36. Re2
{[%clk 0:00:28.5]} 36... Qb3 {[%clk 0:00:23.2]} 37. Rdd2 {[%clk 0:00:27]} 37...
Qxf3 {[%clk 0:00:23]} 38. Be5 {[%clk 0:00:20.5]} 38... f6 {[%clk 0:00:18.9]} 39.
Qxf3 {[%clk 0:00:20.2]} 39... fxe5 {[%clk 0:00:18.3]} 40. dxe5 {[%clk
0:00:20.5]} 40... Rf8 {[%clk 0:00:16.8]} 41. Qh3 {[%clk 0:00:21.2]} 41... Rf1
{[%clk 0:00:12.2]} 42. Qxf1 {[%clk 0:00:20.8]} 1-0

[Event "Early-Titled-Tuesday-Blitz-October-17-2023"]
[Site "Chess.com"]
[Date "2023.10.17"]
[Round "5"]
[White "aghasiyevkamal"]
[Black "Grossboss19"]
[Result "0-1"]
[WhiteElo "2597"]
[BlackElo "2489"]
[TimeControl "180+1"]
[EndTime "8:57:31 PDT"]
[Termination "Grossboss19 won by resignation"]

1. e4 {[%clk 0:02:59.9]} 1... c5 {[%clk 0:02:51.8]} 2. Nf3 {[%clk 0:02:59.4]}
2... Nc6 {[%clk 0:02:51.8]} 3. Bb5 {[%clk 0:02:59.1]} 3... d6 {[%clk 0:02:51]}
4. O-O {[%clk 0:02:52.7]} 4... Bd7 {[%clk 0:02:50.3]} 5. c3 {[%clk 0:02:51.6]}
5... Nf6 {[%clk 0:02:49.3]} 6. Re1 {[%clk 0:02:51.2]} 6... g6 {[%clk 0:02:46.8]}
7. d4 {[%clk 0:02:49.3]} 7... cxd4 {[%clk 0:02:38.8]} 8. cxd4 {[%clk 0:02:50.2]}
8... a6 {[%clk 0:02:36.5]} 9. Bf1 {[%clk 0:02:43.1]} 9... Bg4 {[%clk 0:02:34.6]}
10. d5 {[%clk 0:02:35.1]} 10... Ne5 {[%clk 0:02:32.9]} 11. Be2 {[%clk
0:02:32.2]} 11... Bxf3 {[%clk 0:02:23.3]} 12. gxf3 {[%clk 0:02:31.8]} 12... Ned7
{[%clk 0:02:12.4]} 13. Be3 {[%clk 0:02:30.4]} 13... Bg7 {[%clk 0:02:11.2]} 14.
Qb3 {[%clk 0:02:27.9]} 14... b6 {[%clk 0:01:56.1]} 15. Nc3 {[%clk 0:02:22.6]}
15... O-O {[%clk 0:01:53.9]} 16. Rac1 {[%clk 0:02:14.7]} 16... Nc5 {[%clk
0:01:52.2]} 17. Qd1 {[%clk 0:02:14.2]} 17... Nh5 {[%clk 0:01:47.9]} 18. b4
{[%clk 0:02:06.7]} 18... Nd7 {[%clk 0:01:47.6]} 19. f4 {[%clk 0:02:06.7]} 19...
Nhf6 {[%clk 0:01:36.8]} 20. Qd3 {[%clk 0:02:01.5]} 20... Qb8 {[%clk 0:01:08.1]}
21. a4 {[%clk 0:01:58.8]} 21... Kh8 {[%clk 0:01:00.4]} 22. Bd4 {[%clk
0:01:47.8]} 22... e5 {[%clk 0:00:49.2]} 23. fxe5 {[%clk 0:01:23.3]} 23... Nxe5
{[%clk 0:00:46.2]} 24. Qh3 {[%clk 0:01:14.1]} 24... Ng8 {[%clk 0:00:29.1]} 25.
Red1 {[%clk 0:01:10]} 25... g5 {[%clk 0:00:20.2]} 26. Qf5 {[%clk 0:00:57.3]}
26... Qd8 {[%clk 0:00:20.1]} 27. Bh5 {[%clk 0:00:47.3]} 27... Nh6 {[%clk
0:00:18.5]} 28. Qh3 {[%clk 0:00:46.4]} 28... f5 {[%clk 0:00:18.7]} 29. Kh1
{[%clk 0:00:29.5]} 29... g4 {[%clk 0:00:18.7]} 30. Qe3 {[%clk 0:00:26.6]} 30...
f4 {[%clk 0:00:18.7]} 31. Qe2 {[%clk 0:00:25.7]} 31... Qh4 {[%clk 0:00:18.1]}
0-1